bitfinex/quotes_ETHUSD_20250217
["timestamp","ask_amount","ask_price","bid_price","bid_amount"]
[1739811137779,3.64927,2740.3,2739.9,0.05797335]
[1739811137985,0.1508012,2740.4,2740.1,0.05777489]
[1739811138153,0.1508012,2740.4,2740.0,0.05787412]
[1739811138347,0.1508012,2740.4,2740.2,0.05767567]
[1739811138546,3.64936,2740.2,2740.1,0.05777489]
[1739811138832,3.64936,2740.2,2739.7,0.7875]
[1739811139209,3.64936,2740.2,2739.8,0.05807259]
[1739811139512,3.64951,2740.1,2739.7,0.7875]
[1739811139803,3.64951,2740.1,2739.9,0.05797335]
[1739811139804,3.64963,2740.0,2739.9,0.05797335]
[1739811139970,3.64963,2740.0,2739.8,0.05807259]
[1739811139971,3.64976,2739.9,2739.8,0.05807259]
[1739811140155,3.64963,2740.0,2739.3,0.8261]
[1739811140156,3.65016,2739.7,2739.3,0.8261]
[1739811140670,3.65033,2739.5,2739.3,0.8261]
[1739811140902,7.30026,2739.7,2739.3,0.8261]
[1739811141200,3.65072,2739.2,2738.4,0.7587]
[1739811141555,7.30152,2739.2,2738.5,0.05936339]
[1739811141772,3.65072,2739.2,2738.5,0.05936339]
[1739811142001,7.30153,2739.2,2738.5,0.05936339]
[1739811142211,3.65131,2738.8,2738.5,0.05936339]
[1739811142505,3.65145,2738.7,2738.5,0.05936339]
[1739811142704,3.65127,2738.8,2738.4,0.7587]
[1739811143004,3.65114,2738.9,2738.6,0.05926406]
[1739811143302,1.0823,2740.0,2738.8,0.7834]
[1739811143481,3.6499,2739.8,2738.9,0.03650573]
[1739811143688,3.6501,2739.7,2738.9,0.09489327]
[1739811143868,3.6501,2739.7,2739.0,0.7955]
[1739811144048,3.6501,2739.7,2739.1,0.03650254]
[1739811144257,3.64986,2739.9,2739.2,0.05786843]
[1739811144454,3.64984,2739.9,2739.2,0.05786843]
[1739811144714,3.64972,2740.0,2739.3,0.7955]
[1739811144851,0.1508012,2740.4,2739.3,0.7955]
[1739811145051,3.65033,2739.5,2739.4,0.05766986]
[1739811145281,0.8117,2739.8,2738.3,5.48770857]
[1739811145282,0.04562865,2739.7,2739.0,0.7955]
[1739811145488,3.65066,2739.3,2739.0,0.7955]
[1739811145804,3.65051,2739.4,2739.1,0.05784768]
[1739811146005,3.65058,2739.3,2739.1,0.05784768]
[1739811146211,3.6507,2739.2,2739.1,0.05784768]
[1739811146493,4.42646099,2739.2,2739.1,0.05784768]
[1739811146700,8.742528,2739.2,2739.1,0.05784768]
[1739811146903,0.73485113,2739.7,2739.1,0.7955]
[1739811147198,3.65039,2739.5,2739.1,0.7955]
[1739811147398,0.8117,2740.1,2739.2,0.05783683]
[1739811147560,3.65006,2739.7,2739.2,0.05783683]
[1739811147755,3.64979,2739.9,2739.2,0.05783683]
[1739811147983,3.64979,2739.9,2739.3,0.03650131]
[1739811148290,3.6493,2740.3,2739.5,0.7502]
[1739811148493,3.64964,2740.0,2739.5,0.7502]
[1739811148693,3.64961,2740.1,2739.6,0.05746817]
[1739811148879,3.64963,2740.0,2739.6,0.05746817]
[1739811149282,3.64971,2740.0,2739.6,0.05746817]
[1739811149490,3.64946,2740.2,2739.6,0.05746817]
[1739811149902,7.29893,2740.2,2739.6,0.05746817]
[1739811150067,3.7999612,2740.4,2739.7,0.03649388]
[1739811150395,0.1508012,2740.4,2739.9,0.7766]
[1739811150692,0.1508012,2740.4,2740.0,0.49952814]
[1739811150862,0.1508012,2740.4,2740.0,0.05689114]
[1739811151065,0.1508012,2740.4,2740.1,0.03649001]
[1739811151484,0.1508012,2740.4,2740.2,0.05660112]
[1739811152199,0.1508012,2740.4,2740.2,0.03648817]
[1739811152363,0.1508012,2740.4,2740.3,0.05650191]
[1739811153057,0.1508012,2740.4,2739.9,0.7766]
[1739811153280,0.1508012,2740.4,2740.0,0.05679957]
[1739811154488,3.7999012,2740.4,2740.0,0.05679957]
[1739811154691,3.64937,2740.2,2740.0,0.05679957]
[1739811154869,3.6495,2740.1,2740.0,0.05679957]
[1739811155401,3.6495,2740.1,2739.9,0.7766]
[1739811155801,3.64997,2739.8,2739.4,0.7581]
[1739811156002,0.04562456,2739.8,2738.6,1.0851]
[1739811156299,3.6495,2740.1,2739.1,0.7581]
[1739811156596,3.65006,2739.7,2739.2,0.440899]
[1739811156800,0.59562515,2740.2,2739.1,0.7581]
[1739811157000,0.59562515,2740.2,2738.5,0.18592442]
[1739811157001,3.65081,2739.2,2738.5,0.18592442]
[1739811157224,3.65021,2739.6,2738.6,3.65148]
[1739811157425,3.65021,2739.6,2738.7,0.8131]
[1739811157651,3.65064,2739.3,2738.7,0.8131]
[1739811157925,3.65092,2739.1,2738.7,0.8131]
[1739811158214,3.65018,2739.6,2738.7,0.8131]
[1739811158412,3.65016,2739.7,2738.7,4.46446]
[1739811158619,3.65021,2739.6,2738.7,0.8131]
[1739811159035,3.65032,2739.5,2738.7,0.8131]
[1739811159183,3.65058,2739.3,2738.8,0.446458]
[1739811159366,3.65077,2739.2,2738.7,0.8131]
[1739811159725,3.65097,2739.0,2738.7,0.8131]
[1739811159871,3.65112,2738.9,2738.7,0.8131]
[1739811160073,3.65097,2739.0,2738.8,0.05413698]
[1739811160366,3.6507,2739.2,2738.8,0.05413698]
[1739811160593,3.6507,2739.2,2738.7,0.8131]
[1739811160791,3.65057,2739.3,2738.9,0.05403767]
[1739811161106,4.75446101,2740.0,2739.0,0.05393836]
[1739811161107,3.65037,2739.5,2739.0,0.05393836]
[1739811161507,3.65037,2739.5,2738.8,0.03650833]
[1739811161705,3.65054,2739.4,2739.1,0.05391769]
[1739811161906,3.65057,2739.3,2738.7,0.8131]
[1739811162111,3.65071,2739.2,2738.7,0.8131]
[1739811162310,3.6502,2739.6,2738.7,0.8131]
[1739811162626,3.6507,2739.2,2738.7,0.8131]
[1739811163100,3.65051,2739.4,2738.8,0.03650592]
[1739811163295,3.65032,2739.5,2738.8,0.03650592]
[1739811163476,3.65032,2739.5,2738.7,0.8131]
[1739811163477,3.64996,2739.8,2738.9,3.65103]
[1739811163677,3.64996,2739.8,2738.9,3.65098]
[1739811163922,3.64996,2739.8,2739.0,0.365098]
[1739811164092,3.65039,2739.5,2739.0,0.365098]
[1739811164295,0.55,2740.1,2738.7,3.0]
[1739811164525,3.65049,2739.4,2738.5,3.6515]
[1739811164700,3.65043,2739.4,2738.6,3.0]
[1739811164895,7.30051,2739.6,2738.7,3.65133]
[1739811165091,3.65044,2739.4,2738.7,1.030283]
[1739811165286,0.55,2740.1,2738.7,1.030283]
[1739811165490,1.3305,2739.9,2738.3,0.51174318]
[1739811165731,3.65079,2739.2,2738.3,4.16361318]
[1739811165934,3.65129,2738.8,2737.8,8.40691101]
[1739811166136,3.65134,2738.8,2737.8,8.40691101]
[1739811166429,3.65103,2739.0,2738.1,0.812]
[1739811166591,3.65135,2738.8,2738.2,0.3812]
[1739811166792,7.30268,2738.8,2738.2,0.3812]
[1739811167093,3.65133,2738.8,2738.2,0.3812]
[1739811167293,3.65136,2738.7,2738.2,0.3812]
[1739811167488,3.65133,2738.8,2738.2,0.3812]
[1739811168106,3.65106,2739.0,2738.2,4.03322]
[1739811168305,3.65079,2739.2,2738.3,1.215322]
[1739811168505,3.7805,2739.5,2738.3,1.215322]
[1739811168707,3.65068,2739.3,2738.3,0.812]
[1739811169030,3.65094,2739.1,2738.3,0.812]
[1739811169395,3.651,2739.0,2738.3,0.812]
[1739811169720,3.65056,2739.3,2738.3,0.812]
[1739811170031,3.65103,2739.0,2738.3,0.812]
[1739811170331,3.6511,2738.9,2738.3,1.296535]
[1739811170503,3.65123,2738.8,2738.3,1.296535]
[1739811170705,3.65123,2738.8,2738.3,0.812]
[1739811170906,3.6507,2739.2,2738.3,0.812]
[1739811171113,3.65173,2738.5,2738.3,0.812]
[1739811171498,3.65167,2738.5,2738.3,0.812]
[1739811171729,3.65146,2738.7,2738.3,0.812]
[1739811171730,3.65146,2738.7,2738.4,0.05493684]
[1739811171929,3.65124,2738.8,2738.4,0.05493684]
[1739811172130,3.65137,2738.7,2738.4,0.05493684]
[1739811172335,3.6507,2739.2,2738.4,0.05493684]
[1739811172672,3.65097,2739.0,2738.4,0.05493684]
[1739811172838,3.65119,2738.9,2738.4,0.50682552]
[1739811172994,3.65119,2738.9,2738.4,0.05493684]
[1739811173503,3.65097,2739.0,2738.4,0.05493684]
[1739811174029,3.6511,2738.9,2738.4,0.05493684]
[1739811174226,3.65093,2739.1,2738.4,0.05493684]
[1739811174739,0.7805,2739.5,2738.4,0.05493684]
[1739811175037,3.65096,2739.1,2738.4,0.05493684]
[1739811175200,3.65163,2738.5,2738.4,0.05493684]
[1739811175405,3.65163,2738.5,2738.3,0.812]
[1739811175604,3.65163,2738.5,2738.4,0.05499975]
[1739811176296,3.65163,2738.5,2738.3,0.812]
[1739811176527,3.65176,2738.4,2738.3,0.812]
[1739811177270,3.65163,2738.5,2738.3,0.812]
[1739811177465,3.65176,2738.4,2737.7,0.7575]
[1739811177628,3.65196,2738.3,2737.8,0.05559596]
[1739811177832,3.65196,2738.3,2737.7,1.16358286]
[1739811178180,3.65196,2738.3,2737.8,0.05559596]
[1739811178544,3.65208,2738.2,2737.7,0.7575]
[1739811178739,3.65208,2738.2,2737.9,0.05549658]
[1739811178957,3.65223,2738.1,2737.8,0.05559596]
[1739811179155,3.65208,2738.2,2738.0,0.0553972]
[1739811179357,3.65198,2738.3,2737.9,0.05549658]
[1739811179662,3.65191,2738.3,2738.0,0.0553972]
[1739811179828,3.65216,2738.1,2737.7,0.7575]
[1739811180036,3.65216,2738.1,2737.8,0.05559596]
[1739811180248,3.65216,2738.1,2737.7,0.7575]
[1739811180457,3.65239,2738.0,2737.7,0.7575]
[1739811180645,0.55,2738.7,2737.8,0.05577843]
[1739811180968,0.55,2738.7,2737.7,0.7575]
[1739811180969,3.65236,2738.0,2737.7,0.7575]
[1739811181171,3.65179,2738.4,2737.7,0.7575]
[1739811181468,3.6527,2737.7,2737.6,0.11834784]
[1739811181834,3.65292,2737.6,2737.0,0.8034]
[1739811182034,3.65307,2737.5,2737.0,0.8034]
[1739811182334,0.832,2738.3,2737.0,4.45697]
[1739811182335,7.48394,2738.3,2737.0,4.45697]
[1739811182536,7.30524,2737.8,2737.0,4.45697]
[1739811182859,3.65292,2737.6,2737.0,0.8034]
[1739811183448,4.46922871,2738.2,2737.0,4.457]
[1739811183769,3.65277,2737.7,2737.0,0.8034]
[1739811183980,3.65283,2737.6,2737.0,0.8034]
[1739811184149,3.65298,2737.5,2737.0,0.8034]
[1739811184344,3.65333,2737.3,2737.0,0.8034]
[1739811184549,3.65346,2737.2,2737.0,0.8034]
[1739811184876,3.65329,2737.3,2736.7,0.7725]
[1739811185172,3.65347,2737.2,2736.7,0.7725]
[1739811185537,0.730676,2737.2,2736.7,0.7725]
[1739811185738,3.65376,2737.0,2736.7,0.7725]
[1739811185963,3.65351,2737.1,2736.7,0.7725]
[1739811186171,3.65367,2737.0,2736.7,0.7725]
[1739811186835,3.65351,2737.1,2736.7,0.7725]
[1739811187087,3.65331,2737.3,2736.7,0.7725]
[1739811187246,3.65385,2736.9,2736.7,0.7725]
[1739811187447,3.65356,2737.1,2736.7,0.7725]
[1739811187634,0.365331,2737.3,2736.7,0.7725]
[1739811187840,3.65387,2736.9,2736.7,0.7725]
[1739811188178,7.30772,2736.9,2736.7,0.7725]
[1739811188386,3.65419,2736.6,2736.1,0.7725]
[1739811188541,3.6541,2736.7,2736.1,0.7725]
[1739811188954,3.65399,2736.8,2736.1,0.7725]
[1739811189261,3.65417,2736.6,2736.1,0.7725]
[1739811190087,3.65433,2736.5,2736.2,0.05755839]
[1739811190256,3.65455,2736.4,2736.1,0.7725]
[1739811190456,3.65458,2736.3,2735.8,0.8265]
[1739811190800,3.65455,2736.4,2735.8,0.8265]
[1739811190801,3.65454,2736.4,2735.8,0.8265]
[1739811190971,7.30905,2736.4,2735.9,0.05785694]
[1739811191165,3.65451,2736.4,2735.9,0.05785694]
[1739811191365,3.65423,2736.6,2735.9,0.05785694]
[1739811191686,7.3085,2736.6,2735.9,0.05785694]
[1739811191895,3.65433,2736.5,2735.9,0.05785694]
[1739811192262,3.65431,2736.5,2735.9,0.05785694]
[1739811192595,3.65445,2736.4,2735.9,0.05785694]
[1739811192789,3.65423,2736.6,2735.9,0.05785694]
[1739811193105,4.122831,2737.3,2736.0,0.8265]
[1739811193305,3.6537,2737.0,2736.0,0.88483052]
[1739811193489,3.65384,2736.9,2736.1,3.65473]
[1739811193657,3.65384,2736.9,2736.2,3.65468]
[1739811193986,3.65345,2737.2,2736.4,4.40456]
[1739811194361,3.65345,2737.2,2736.5,0.05837465]
[1739811195803,3.65345,2737.2,2736.5,3.71265465]
[1739811196382,3.65358,2737.1,2736.5,0.05837465]
[1739811196610,3.65345,2737.2,2736.5,0.05837465]
[1739811196764,3.65371,2737.0,2736.5,0.05837465]
[1739811197118,0.55,2737.4,2736.5,0.05837465]
[1739811197295,7.30778,2736.9,2736.5,0.05837465]
[1739811197497,3.65399,2736.8,2736.5,0.05837465]
[1739811197812,3.65413,2736.7,2736.5,0.05837465]
[1739811198182,3.65405,2736.7,2736.5,0.05837465]
[1739811198361,3.65416,2736.6,2736.5,0.05837465]
[1739811198764,3.65458,2736.3,2736.0,0.8328]
[1739811199071,3.65491,2736.1,2735.7,0.8192]
[1739811199289,3.65501,2736.0,2735.7,0.8192]
[1739811200521,7.31008,2736.0,2735.7,0.8192]
[1739811200703,3.65501,2736.0,2735.7,0.8192]
[1739811201018,3.6551,2735.9,2735.7,0.8192]
[1739811201469,3.65492,2736.1,2735.7,0.8192]
[1739811201670,3.65464,2736.3,2735.7,0.8192]
[1739811201865,0.7788,2736.5,2735.7,0.8192]
[1739811202103,3.6543,2736.5,2735.7,4.922018]
[1739811202469,3.6543,2736.5,2735.7,1.266668]
[1739811202892,3.6539,2736.8,2735.7,1.266668]
[1739811203097,3.65457,2736.3,2735.7,1.266668]
[1739811203486,3.65459,2736.3,2735.7,1.266668]
[1739811203691,3.65472,2736.2,2735.7,0.8192]
[1739811203907,3.65451,2736.4,2735.7,0.8192]
[1739811204110,3.6542,2736.6,2735.8,3.65518]
[1739811204421,0.55,2736.8,2735.7,4.47456]
[1739811204593,7.30903,2736.4,2735.8,0.447456]
[1739811204790,3.65451,2736.4,2735.8,0.447456]
[1739811204989,7.30903,2736.4,2735.8,0.447456]
[1739811205329,3.65457,2736.3,2735.9,0.05918917]
[1739811206024,3.65428,2736.6,2735.9,0.05918917]
[1739811206227,0.8001,2737.2,2736.1,0.7704]
[1739811206378,3.6547,2736.2,2736.1,0.7704]
[1739811206583,3.65448,2736.4,2735.8,0.7704]
[1739811207616,3.65421,2736.6,2735.8,4.42557]
[1739811207817,7.30851,2736.6,2735.8,4.42557]
[1739811208121,3.65307,2737.5,2735.8,4.42557]
[1739811208122,0.7794,2737.3,2736.0,0.823]
[1739811208298,3.65365,2737.0,2736.2,0.823]
[1739811208499,3.65377,2736.9,2736.2,4.47766]
[1739811208685,0.7794,2737.3,2736.2,0.823]
[1739811208886,0.7794,2737.6,2736.7,0.7763]
[1739811209128,3.65281,2737.7,2737.0,0.7763]
[1739811209286,3.65281,2737.7,2737.0,4.42991]
[1739811209487,3.65286,2737.6,2737.0,0.7763]
[1739811209722,3.65286,2737.6,2737.0,1.219311]
[1739811210149,3.65283,2737.6,2737.0,1.219311]
[1739811210420,3.65286,2737.6,2737.0,1.219311]
[1739811211005,3.65281,2737.7,2737.0,1.219311]
[1739811211199,0.748394,2738.2,2737.0,1.219311]
[1739811211400,3.65223,2738.1,2737.3,3.65319]
[1739811211601,3.65223,2738.1,2737.4,3.65307]
[1739811211902,3.65184,2738.4,2737.4,7.30602]
[1739811212111,3.65235,2738.0,2737.5,0.812972]
[1739811212321,3.65204,2738.2,2737.3,4.47682]
[1739811212517,3.65205,2738.2,2737.4,3.65309]
[1739811212690,3.65205,2738.2,2737.5,0.8237]
[1739811212890,3.6519,2738.3,2737.5,4.47658]
[1739811213091,3.65169,2738.5,2737.5,4.47663]
[1739811213291,3.65157,2738.6,2737.6,0.447663]
[1739811213491,3.65157,2738.6,2737.7,4.45948]
[1739811213729,3.65157,2738.6,2737.9,3.65242]
[1739811213929,3.65129,2738.8,2737.9,3.65242]
[1739811213930,0.7888,2739.4,2737.9,4.45914]
[1739811214138,3.65143,2738.7,2737.9,4.45912]
[1739811214335,3.65143,2738.7,2738.0,0.9213581]
[1739811214508,3.65143,2738.7,2738.0,4.5736381]
[1739811214834,3.65143,2738.7,2738.0,0.9213581]
[1739811215038,3.65143,2738.7,2738.0,4.5736181]
[1739811215223,3.65143,2738.7,2738.0,4.5735781]
[1739811215424,3.65116,2738.9,2738.1,4.19018781]
[1739811215628,3.65116,2738.9,2738.2,0.8068]
[1739811215937,3.65128,2738.8,2738.2,0.8068]
[1739811216501,1.53079765,2739.4,2738.2,0.8068]
[1739811216703,7.3032,2738.6,2738.2,0.8068]
[1739811217237,3.65163,2738.5,2738.2,0.8068]
[1739811217437,3.65159,2738.6,2738.2,0.8068]
[1739811217644,3.65146,2738.7,2738.2,0.8068]
[1739811217849,3.65129,2738.8,2738.2,0.8068]
[1739811218044,3.65143,2738.7,2738.2,0.8068]
[1739811218699,3.65163,2738.5,2738.2,0.8068]
[1739811219125,3.6519,2738.3,2737.8,0.7938]
[1739811219740,3.65223,2738.1,2737.8,0.7938]
[1739811220117,3.65203,2738.2,2737.9,0.05591192]
[1739811220322,3.65222,2738.1,2737.9,0.05591192]
[1739811221253,3.6523,2738.0,2737.9,0.05591192]
[1739811221913,3.65199,2738.3,2737.9,0.05591192]
[1739811222104,3.6521,2738.2,2737.9,0.05591192]
[1739811222611,3.65218,2738.1,2737.9,0.05591192]
[1739811222815,3.6523,2738.0,2737.9,0.05591192]
[1739811223339,0.7601,2738.8,2737.9,0.05591192]
[1739811223543,3.65208,2738.2,2737.9,0.05591192]
[1739811223848,0.7601,2738.8,2737.9,0.05591192]
[1739811224047,3.6523,2738.0,2737.9,0.05591192]
[1739811224555,0.55,2738.7,2737.9,0.05587412]
[1739811224556,3.55,2738.7,2737.9,0.05587412]
[1739811224721,3.6523,2738.0,2737.9,0.05587412]
[1739811225038,3.65256,2737.9,2737.5,0.8136]
[1739811225341,3.65223,2738.1,2737.6,0.0561723]
[1739811225503,3.65211,2738.2,2737.6,0.0561723]
[1739811225504,3.65233,2738.0,2737.6,0.0561723]
[1739811225705,3.6522,2738.1,2737.6,0.0561723]
[1739811226028,3.6522,2738.1,2737.6,0.50844353]
[1739811226225,3.6522,2738.1,2737.6,0.0561723]
[1739811226402,3.6524,2738.0,2737.6,0.0561723]
[1739811226604,3.65251,2737.9,2737.6,0.0561723]
[1739811227136,3.65249,2737.9,2737.6,0.0561723]
[1739811228029,3.65227,2738.1,2737.6,0.0561723]
[1739811228030,3.6527,2737.7,2737.6,0.0561723]
[1739811228341,3.6527,2737.7,2736.8,0.18140328]
[1739811228342,3.65296,2737.6,2737.2,0.787]
[1739811228509,3.65251,2737.9,2737.2,4.44036]
[1739811228704,3.65251,2737.9,2737.3,0.05649258]
[1739811229166,3.65225,2738.1,2737.4,3.65299]
[1739811229464,3.65231,2738.0,2737.5,0.8282]
[1739811229762,3.65225,2738.1,2737.6,0.05627617]
[1739811230265,3.65163,2738.5,2737.8,0.8282]
[1739811230412,3.65163,2738.5,2737.8,4.4807]
[1739811230613,3.65163,2738.5,2737.9,0.05591818]
[1739811231141,3.65146,2738.7,2737.9,3.70832818]
[1739811231459,3.65147,2738.7,2738.0,3.65223]
[1739811231659,3.65156,2738.6,2738.1,0.37081482]
[1739811231954,3.65165,2738.5,2738.1,0.42653425]
[1739811232262,3.65165,2738.5,2738.1,0.05571943]
[1739811232609,3.65165,2738.5,2737.8,0.8282]
[1739811232828,3.65197,2738.3,2738.2,0.05562006]
[1739811233032,3.6522,2738.1,2737.8,0.8282]
[1739811233464,3.6522,2738.1,2737.9,0.05577971]
[1739811233664,3.6523,2738.0,2737.9,0.05577971]
[1739811234370,3.65243,2737.9,2737.8,0.8282]
[1739811234568,0.7687,2738.4,2737.4,0.7752]
[1739811234775,3.65252,2737.9,2737.4,0.7752]
[1739811235232,3.65264,2737.8,2737.5,0.05625281]
[1739811235739,0.7687,2738.4,2737.5,0.05625281]
[1739811235942,3.6527,2737.7,2737.5,0.05625281]
[1739811236878,7.30553,2737.7,2737.5,0.05625281]
[1739811237077,3.6527,2737.7,2737.5,0.05625281]
[1739811237486,3.65281,2737.7,2737.5,0.05625281]
[1739811237664,1.48903061,2738.4,2737.4,0.7752]
[1739811237848,3.6527,2737.7,2737.6,0.05626671]
[1739811238165,3.6527,2737.7,2737.6,0.05632337]
[1739811238351,3.6527,2737.7,2737.4,0.7752]
[1739811238590,3.6527,2737.7,2737.6,0.05632652]
[1739811238789,3.6527,2737.7,2737.4,0.7752]
[1739811239094,3.6527,2737.7,2737.6,0.05632652]
[1739811239258,3.65283,2737.6,2737.5,0.05642593]
[1739811239459,3.65283,2737.6,2737.4,0.7752]
[1739811239660,7.30577,2737.6,2737.4,0.7752]
[1739811239859,3.65324,2737.3,2737.1,0.7752]
[1739811240697,3.65336,2737.2,2737.1,0.7752]
[1739811240911,3.65336,2737.2,2736.6,3.0]
[1739811241198,3.65376,2736.9,2736.8,0.7752]
[1739811241693,3.65354,2737.1,2736.8,0.7752]
[1739811242281,3.65333,2737.3,2736.8,0.7752]
[1739811242282,3.65337,2737.2,2736.8,0.7752]
[1739811242487,3.65354,2737.1,2736.8,0.7752]
[1739811242682,3.6532,2737.4,2736.8,0.7752]
[1739811242887,3.65356,2737.1,2736.8,0.7752]
[1739811243405,3.65366,2737.0,2736.8,0.7752]
[1739811243604,3.65376,2736.9,2736.8,0.7752]
[1739811243893,3.65376,2736.9,2736.5,0.7911]
[1739811244075,3.65399,2736.8,2736.5,0.7911]
[1739811244601,3.65356,2737.1,2736.5,0.7911]
[1739811244905,3.65438,2736.5,2736.0,0.7788]
[1739811245197,3.65416,2736.6,2736.0,0.7788]
[1739811245198,3.65446,2736.4,2736.0,0.7788]
[1739811245696,7.30826,2736.7,2736.0,0.7788]
[1739811246006,0.7948,2737.0,2736.0,0.7788]
[1739811246203,3.6539,2736.8,2736.0,0.7788]
[1739811246367,3.6545,2736.4,2736.0,0.7788]
[1739811246559,0.44943769,2736.8,2736.0,0.7788]
[1739811246766,3.65447,2736.4,2736.0,0.7788]
[1739811247390,3.65452,2736.4,2736.0,0.7788]
[1739811247699,3.65464,2736.3,2736.0,0.7788]
[1739811247894,3.65451,2736.4,2736.0,0.7788]
[1739811248264,7.30904,2736.4,2736.0,0.7788]
[1739811248460,3.65376,2736.9,2736.0,0.7788]
[1739811248695,3.65481,2736.2,2736.0,0.7788]
[1739811249087,3.65483,2736.1,2736.0,0.7788]
[1739811249290,3.65481,2736.2,2736.0,0.7788]
[1739811249594,3.65453,2736.4,2736.0,0.7788]
[1739811249800,3.65466,2736.3,2736.0,0.7788]
[1739811249998,3.65473,2736.2,2736.0,0.7788]
[1739811250204,3.65473,2736.2,2736.1,0.05833798]
[1739811250986,3.65523,2735.8,2735.7,0.82]
[1739811251192,3.65523,2735.8,2735.3,3.82]
[1739811251379,3.65505,2736.0,2735.3,3.82]
[1739811251380,3.65511,2735.9,2735.3,3.82]
[1739811251584,3.65544,2735.7,2735.3,0.82]
[1739811252519,3.65551,2735.6,2735.3,0.82]
[1739811252825,3.65559,2735.6,2735.3,0.82]
[1739811253384,3.65564,2735.5,2735.3,0.82]
[1739811253572,3.65574,2735.5,2735.3,0.82]
[1739811254387,3.65574,2735.5,2735.0,0.7747]
[1739811254692,3.65574,2735.5,2735.0,1.97388214]
[1739811255210,3.6555,2735.6,2735.0,5.63016214]
[1739811255513,3.65565,2735.5,2735.0,1.97388214]
[1739811255822,0.7835,2735.8,2735.2,3.65593]
[1739811256122,3.65539,2735.7,2735.1,3.65606]
[1739811256280,3.65539,2735.7,2735.2,0.56299421]
[1739811256882,3.65553,2735.6,2735.2,0.56299421]
[1739811257216,0.445917,2736.3,2735.3,0.7537]
[1739811257419,0.8242,2736.4,2735.3,4.4096]
[1739811257620,3.65508,2736.0,2735.3,4.4096]
[1739811258120,3.65511,2735.9,2735.3,4.40954]
[1739811258303,3.65477,2736.2,2735.3,0.7537]
[1739811258617,0.7745,2736.7,2735.8,3.65517]
[1739811258791,3.65457,2736.3,2735.9,0.365517]
[1739811258996,3.6543,2736.5,2735.5,4.41663]
[1739811259195,3.6555,2735.6,2735.0,12.52624]
[1739811259383,3.65564,2735.5,2735.1,0.761]
[1739811259730,3.65551,2735.6,2735.1,0.761]
[1739811259898,7.31113,2735.6,2735.1,0.761]
[1739811260083,3.65551,2735.6,2735.1,0.761]
[1739811260927,3.65603,2735.2,2735.1,0.761]
[1739811261086,0.04569952,2735.5,2734.8,0.761]
[1739811261279,3.65625,2735.1,2734.8,0.761]
[1739811261581,3.65599,2735.3,2734.8,0.761]
[1739811261786,7.31198,2735.3,2734.8,0.761]
[1739811262020,3.65599,2735.3,2734.8,0.761]
[1739811262317,3.65596,2735.3,2734.8,0.761]
[1739811262681,7.31196,2735.3,2734.8,0.761]
[1739811263094,3.65596,2735.3,2734.8,0.761]
[1739811263397,0.04569877,2735.5,2734.8,0.761]
[1739811263607,3.65613,2735.2,2734.8,0.761]
[1739811264009,3.65604,2735.2,2734.8,0.761]
[1739811264799,3.65619,2735.1,2734.8,0.761]
[1739811265132,3.65644,2734.9,2734.7,0.11655185]
[1739811266138,0.04570424,2734.8,2734.2,0.8327]
[1739811266435,7.31407,2734.5,2734.2,0.8327]
[1739811266613,3.657,2734.5,2734.2,0.8327]
[1739811266797,3.6572,2734.4,2733.8,0.8327]
[1739811267003,3.657,2734.5,2733.9,3.6577]
[1739811267504,0.365639,2734.9,2733.8,4.67766847]
[1739811267840,0.4836879,2734.8,2733.8,5.62088142]
[1739811268137,3.65719,2734.4,2733.8,5.62088142]
[1739811268338,3.65719,2734.4,2733.8,5.43381295]
[1739811269135,3.65739,2734.2,2733.8,0.8327]
[1739811269441,7.31484,2734.2,2733.8,0.8327]
[1739811269731,3.65739,2734.2,2733.8,0.8327]
[1739811269911,3.65753,2734.1,2733.8,0.8327]
[1739811270108,3.65777,2733.9,2733.4,0.7594]
[1739811270341,0.8008,2734.4,2733.4,5.225461]
[1739811270342,3.65773,2734.0,2733.4,5.225461]
[1739811270569,3.65786,2733.9,2733.4,1.567051]
[1739811270775,3.65744,2734.2,2733.4,1.567051]
[1739811270976,3.65757,2734.1,2733.5,3.65831]
[1739811271276,3.65765,2734.0,2733.4,4.4178]
[1739811271577,3.65744,2734.2,2733.6,3.65811]
[1739811271756,3.65744,2734.2,2733.5,3.6583]
[1739811271962,3.65744,2734.2,2733.6,3.6581]
[1739811272160,3.65713,2734.4,2733.9,0.8327]
[1739811272470,3.65748,2734.2,2733.9,0.7327]
[1739811272680,3.65744,2734.2,2733.9,0.7327]
[1739811273057,3.65759,2734.1,2733.9,0.7327]
[1739811273254,3.65684,2734.6,2733.4,6.79278871]
[1739811273453,3.65744,2734.2,2733.6,3.65811]
[1739811273648,3.65752,2734.1,2733.6,3.65811]
[1739811274063,3.65688,2734.6,2733.5,4.33747887]
[1739811274234,3.65703,2734.5,2733.9,3.65771]
[1739811274950,3.65703,2734.5,2733.7,7.45074871]
[1739811274951,0.365639,2734.9,2734.0,3.79278871]
[1739811275177,4.47493,2735.0,2734.4,3.6571]
[1739811275377,3.65619,2735.1,2734.4,4.4182]
[1739811275783,3.65652,2734.9,2734.4,0.7611]
[1739811276244,7.31248,2735.1,2734.5,3.65688]
[1739811276443,3.65641,2735.0,2734.5,1.18679187]
[1739811276644,4.47463,2735.3,2734.5,1.18679187]
[1739811276868,3.65611,2735.2,2734.6,3.65675]
[1739811277096,4.10322188,2735.5,2734.7,3.65662]
[1739811277382,0.7915,2735.6,2735.0,0.8174]
[1739811277580,3.65544,2735.7,2735.1,3.65604]
[1739811277766,3.65544,2735.7,2735.0,0.8174]
[1739811278082,3.65565,2735.5,2735.0,0.8174]
[1739811278582,3.65558,2735.6,2735.0,1.73976791]